fUSD/lending_fUSD_20250208
["ID","MTS","AMOUNT","RATE_DAILY","PERIOD"]
[352287605,1739028652924,-500.0,0.00010272,2]
[352287606,1739028652934,-500.0,0.00010272,2]
[352287607,1739028652946,-500.0,0.00010272,2]
[352287608,1739028652955,-986.77,0.00010272,2]
[352287609,1739028652964,-500.0,0.00010272,2]
[352287610,1739028652974,-500.0,0.00010272,2]
[352287611,1739028652983,-500.0,0.00010272,2]
[352287612,1739028652993,-934.21,0.00010272,2]
[352287613,1739028653003,-500.0,0.00010272,2]
[352287614,1739028653012,-1252.76,0.00010272,2]
[352287615,1739028653022,-500.0,0.00010272,2]
[352287616,1739028653032,-500.0,0.00010272,2]
[352287617,1739028653042,-851.2,0.00010272,2]
[352287618,1739028653051,-983.8,0.00010272,2]
[352287619,1739028653061,-633.99,0.00010272,2]
[352287620,1739028653071,-500.0,0.00010272,2]
[352287621,1739028653081,-500.0,0.00010272,2]
[352287622,1739028653092,-913.56,0.00010272,2]
[352287623,1739028653102,-500.0,0.00010272,2]
[352287624,1739028653112,-500.0,0.00010272,2]
[352287625,1739028653122,-1088.42,0.00010272,2]
[352287626,1739028653131,-947.86,0.00010272,2]
[352287627,1739028653141,-1091.33,0.00010272,2]
[352287628,1739028653151,-500.0,0.00010272,2]
[352287629,1739028653161,-500.0,0.00010272,2]
[352287630,1739028653170,-1317.62,0.00010272,2]
[352287631,1739028653180,-500.0,0.00010272,2]
[352287632,1739028653189,-787.07,0.00010272,2]
[352287633,1739028653200,-500.0,0.00010272,2]
[352287634,1739028653210,-593.57,0.00010272,2]
[352287635,1739028653220,-500.0,0.00010272,2]
[352287636,1739028653230,-508.17,0.00010272,2]
[352287637,1739028653240,-992.85,0.00010272,2]
[352287638,1739028653250,-2552.46,0.00010272,2]
[352287639,1739028653261,-780.62,0.00010272,2]
[352287640,1739028653271,-548.15,0.00010272,2]
[352287641,1739028653280,-1122.93,0.00010272,2]
[352287642,1739028653293,-1101.79,0.00010272,2]
[352287643,1739028653306,-902.22,0.00010272,2]
[352287644,1739028653319,-657.05,0.00010272,2]
[352287645,1739028653331,-500.0,0.00010272,2]
[352287646,1739028653343,-512.48,0.00010272,2]
[352287647,1739028653353,-500.0,0.00010272,2]
[352287648,1739028653364,-1120.42,0.00010272,2]
[352287649,1739028653375,-6693.6,0.00010272,2]
[352287650,1739028653386,-741.29,0.00010272,2]
[352287651,1739028653398,-1034.11,0.00010272,2]
[352287653,1739028653409,-675.65,0.00010272,2]
[352287655,1739028653421,-500.0,0.00010272,2]
[352287657,1739028653432,-581.86,0.00010272,2]
[352287660,1739028653444,-323.78,0.00010272,2]
[352287662,1739028653456,-916.73,0.00010272,2]
[352287664,1739028653468,-731.99,0.00010272,2]
[352287667,1739028653482,-1466.25,0.00010272,2]
[352287669,1739028653494,-500.0,0.00010272,2]
[352287671,1739028653504,-504.92116031,0.00010272,2]
[352287673,1739028653516,-500.0,0.00010272,2]
[352287675,1739028653525,-597.7,0.00010272,2]
[352287677,1739028653536,-500.0,0.00010272,2]
[352287680,1739028653547,-500.0,0.00010272,2]
[352287682,1739028653559,-500.0,0.00010272,2]
[352287684,1739028653572,-500.0,0.00010272,2]
[352287686,1739028653584,-1297.02,0.00010272,2]
[352287688,1739028653595,-500.0,0.00010272,2]
[352287690,1739028653607,-1028.96,0.00010272,2]
[352287692,1739028653619,-3310.98,0.00010272,2]
[352287694,1739028653630,-500.0,0.00010272,2]
[352287697,1739028653641,-500.0,0.00010272,2]
[352287699,1739028653654,-500.0,0.00010272,2]
[352287701,1739028653667,-917.91,0.00010272,2]
[352287703,1739028653679,-511.7,0.00010272,2]
[352287706,1739028653690,-500.0,0.00010272,2]
[352287708,1739028653703,-500.0,0.00010272,2]
[352287710,1739028653716,-643.43,0.00010272,2]
[352287712,1739028653726,-500.0,0.00010272,2]
[352287714,1739028653737,-539.85,0.00010272,2]
[352287716,1739028653747,-3319.49,0.00010272,2]
[352287718,1739028653758,-913.19,0.00010272,2]
[352287721,1739028653772,-500.0,0.00010272,2]
[352287723,1739028653782,-1143.68,0.00010272,2]
[352287725,1739028653793,-994.19,0.00010272,2]
[352287727,1739028653805,-954.06,0.00010272,2]
[352287730,1739028653816,-1144.4,0.00010272,2]
[352287732,1739028653827,-500.0,0.00010272,2]
[352287734,1739028653840,-500.0,0.00010272,2]
[352287736,1739028653852,-2477.27,0.00010272,2]
[352287738,1739028653863,-763.69,0.00010272,2]
[352287741,1739028653873,-500.0,0.00010272,2]
[352287743,1739028653885,-806.5,0.00010272,2]
[352287745,1739028653895,-500.0,0.00010273,2]
[352287747,1739028653907,-500.0,0.00010273,2]
[352287749,1739028653920,-500.0,0.00010273,2]
[352287752,1739028653931,-500.0,0.00010273,2]
[352287754,1739028653942,-500.0,0.00010273,2]
[352287756,1739028653953,-500.0,0.00010273,2]
[352287758,1739028653965,-500.0,0.00010273,2]
[352287760,1739028653975,-500.0,0.00010273,2]
[352287762,1739028653985,-500.0,0.00010273,2]
[352287764,1739028653996,-500.0,0.00010273,2]
[352287767,1739028654007,-386.06184338,0.00010273,2]
[352287768,1739028654017,-500.0,0.00010273,2]
[352287769,1739028654027,-500.0,0.00010273,2]
[352287770,1739028654039,-500.0,0.00010273,2]
[352287771,1739028654051,-596.98187065,0.00010273,2]
[352287772,1739028654064,-500.0,0.00010273,2]
[352287773,1739028654073,-500.0,0.00010273,2]
[352287774,1739028654083,-500.0,0.00010273,2]
[352287775,1739028654093,-500.0,0.00010273,2]
[352287776,1739028654102,-981.79,0.00010273,2]
[352287777,1739028654112,-500.0,0.00010273,2]
[352287778,1739028654122,-1014.37,0.00010273,2]
[352287779,1739028654132,-500.0,0.00010273,2]
[352287781,1739028654143,-1092.78,0.00010273,2]
[352287783,1739028654155,-618.07,0.00010273,2]
[352287785,1739028654167,-506.24,0.00010273,2]
[352287787,1739028654179,-500.0,0.00010273,2]
[352287789,1739028654190,-500.0,0.00010273,2]
[352287792,1739028654203,-1239.48,0.00010273,2]
[352287794,1739028654214,-500.0,0.00010273,2]
[352287796,1739028654225,-1189.9,0.00010273,2]
[352287798,1739028654236,-1172.45,0.00010273,2]
[352287800,1739028654246,-500.0,0.00010273,2]
[352287802,1739028654257,-500.0,0.00010273,2]
[352287804,1739028654268,-942.36,0.00010273,2]
[352287806,1739028654280,-500.0,0.00010273,2]
[352287809,1739028654290,-500.0,0.00010273,2]
[352287811,1739028654300,-500.0,0.00010273,2]
[352287813,1739028654311,-500.0,0.00010273,2]
[352287815,1739028654322,-639.26,0.00010273,2]
[352287817,1739028654333,-626.98,0.00010273,2]
[352287819,1739028654345,-154.16148571,0.00010293,2]
[352287821,1739028654355,-163.67677193,0.00010299,2]
[352287823,1739028654365,-207.48922038,0.00010308,2]
[352287826,1739028654376,-566.57,0.00010336,2]
[352287828,1739028654387,-439.32935423,0.00010353,2]
[352287830,1739028654398,-1000.0,0.000104,2]
[352287832,1739028654408,-197.53,0.00010404,2]
[352287834,1739028654419,-500.0,0.00010408,2]
[352287836,1739028654429,-500.0,0.00010408,2]
[352287838,1739028654440,-500.0,0.00010408,2]
[352287840,1739028654450,-500.0,0.00010408,2]
[352287842,1739028654462,-500.0,0.00010408,2]
[352287845,1739028654472,-500.0,0.00010408,2]
[352287847,1739028654482,-500.0,0.00010408,2]
[352287849,1739028654493,-500.0,0.00010408,2]
[352287851,1739028654504,-500.0,0.00010408,2]
[352287853,1739028654514,-500.0,0.00010408,2]
[352287855,1739028654524,-500.0,0.00010408,2]
[352287857,1739028654535,-500.0,0.00010408,2]
[352287859,1739028654545,-500.0,0.00010408,2]
[352287862,1739028654556,-551.94,0.00010408,2]
[352287864,1739028654569,-500.0,0.00010408,2]
[352287866,1739028654581,-500.0,0.00010408,2]
[352287868,1739028654591,-500.0,0.00010408,2]
[352287870,1739028654602,-500.0,0.00010408,2]
[352287872,1739028654614,-500.0,0.00010408,2]
[352287874,1739028654624,-500.0,0.00010408,2]
[352287876,1739028654635,-500.0,0.00010408,2]
[352287878,1739028654646,-500.0,0.00010408,2]
[352287880,1739028654657,-500.0,0.00010408,2]
[352287882,1739028654667,-500.0,0.00010408,2]
[352287885,1739028654678,-500.0,0.00010408,2]
[352287887,1739028654688,-500.0,0.00010408,2]
[352287889,1739028654700,-500.0,0.00010408,2]
[352287891,1739028654710,-500.0,0.00010408,2]
[352287893,1739028654720,-1172.19,0.00010408,2]
[352287895,1739028654730,-500.0,0.00010408,2]
[352287897,1739028654741,-500.0,0.00010408,2]
[352287900,1739028654752,-500.0,0.00010408,2]
[352287902,1739028654762,-500.0,0.00010408,2]
[352287904,1739028654773,-500.0,0.00010408,2]
[352287906,1739028654784,-500.0,0.00010408,2]
[352287908,1739028654794,-500.0,0.00010408,2]
[352287910,1739028654805,-500.0,0.00010408,2]
[352287912,1739028654816,-500.0,0.00010408,2]
[352287914,1739028654826,-500.0,0.00010408,2]
[352287916,1739028654836,-500.0,0.00010408,2]
[352287919,1739028654847,-500.0,0.00010408,2]
[352287921,1739028654858,-500.0,0.00010408,2]
[352287923,1739028654868,-2262.317998,0.00010408,2]
[352287925,1739028654881,-500.0,0.00010408,2]
[352287927,1739028654891,-500.0,0.00010408,2]
[352287929,1739028654902,-443.84629546,0.00010408,2]
[352287931,1739028654913,-500.0,0.00010408,2]
[352287934,1739028654923,-500.0,0.00010408,2]
[352287936,1739028654934,-500.0,0.00010408,2]
[352287938,1739028654945,-500.0,0.00010408,2]
[352287940,1739028654956,-1871.601859,0.00010408,2]
[352287942,1739028654967,-500.0,0.00010408,2]
[352287944,1739028654977,-511.37,0.00010408,2]
[352287946,1739028654988,-508.94058783,0.00010408,2]
[352287949,1739028654999,-500.0,0.00010408,2]
[352287951,1739028655010,-500.0,0.00010408,2]
[352287953,1739028655020,-500.0,0.00010408,2]
[352287955,1739028655030,-433.16786544,0.00010408,2]
[352287957,1739028655041,-500.0,0.00010408,2]
[352287959,1739028655051,-500.0,0.00010408,2]
[352287961,1739028655062,-2492.37,0.00010408,2]
[352287963,1739028655073,-500.0,0.00010408,2]
[352287965,1739028655083,-500.0,0.00010408,2]
[352287968,1739028655093,-1367.28,0.00010408,2]
[352287970,1739028655103,-500.0,0.00010408,2]
[352287972,1739028655114,-500.0,0.00010408,2]
[352287974,1739028655125,-500.0,0.00010408,2]
[352287976,1739028655135,-500.0,0.00010408,2]
[352287978,1739028655146,-500.0,0.00010408,2]
[352287980,1739028655156,-776.65,0.00010408,2]
[352287982,1739028655167,-500.0,0.00010408,2]
[352287985,1739028655181,-2122.12,0.00010408,2]
[352287987,1739028655191,-500.0,0.00010408,2]
[352287989,1739028655202,-500.0,0.00010408,2]
[352287991,1739028655212,-1602.39,0.00010408,2]
[352287993,1739028655222,-973.04,0.00010408,2]
[352287995,1739028655233,-502.79,0.00010408,2]
[352287998,1739028655243,-959.45,0.00010408,2]
[352288000,1739028655254,-1566.62,0.00010408,2]
[352288002,1739028655264,-500.0,0.00010408,2]
[352288004,1739028655275,-1053.69,0.00010408,2]
[352288006,1739028655286,-1572.34,0.00010408,2]
[352288008,1739028655296,-2608.47,0.00010408,2]
[352288010,1739028655306,-621.5,0.00010408,2]
[352288012,1739028655317,-1721.53,0.00010408,2]
[352288015,1739028655327,-1492.82,0.00010408,2]
[352288017,1739028655339,-1137.25,0.00010408,2]
[352288019,1739028655350,-402.55959165,0.00010408,2]
[352288021,1739028655361,-1422.81,0.00010408,2]
[352288023,1739028655371,-728.42,0.00010408,2]
[352288025,1739028655382,-1340.19,0.00010408,2]
[352288027,1739028655392,-1755.98,0.00010408,2]
[352288030,1739028655403,-2960.07,0.00010408,2]
[352288032,1739028655414,-500.0,0.00010408,2]
[352288034,1739028655425,-681.74,0.00010408,2]
[352288036,1739028655436,-500.0,0.00010408,2]
[352288038,1739028655446,-8641.78,0.00010408,2]
[352288040,1739028655457,-1121.44,0.00010408,2]
[352288042,1739028655468,-1085.56,0.00010408,2]
[352288044,1739028655478,-859.16,0.00010408,2]
[352288047,1739028655488,-500.0,0.00010408,2]
[352288049,1739028655499,-1161.53,0.00010408,2]
[352288051,1739028655510,-1323.4,0.00010408,2]
[352288053,1739028655521,-1515.93,0.00010408,2]
[352288055,1739028655531,-1345.71,0.00010408,2]
[352288057,1739028655543,-1160.6,0.00010408,2]
[352288059,1739028655554,-500.0,0.00010408,2]
[352288061,1739028655565,-1031.19,0.00010408,2]
[352288063,1739028655578,-1853.3,0.00010408,2]
[352288065,1739028655588,-2653.97,0.00010408,2]
[352288068,1739028655598,-710.67,0.00010408,2]
[352288070,1739028655608,-500.0,0.00010408,2]
[352288072,1739028655619,-994.42,0.00010408,2]
[352288074,1739028655630,-1015.6,0.00010408,2]
[352288076,1739028655641,-1281.05,0.00010408,2]
[352288078,1739028655653,-2237.26,0.00010408,2]
[352288080,1739028655663,-1270.9,0.00010408,2]
[352288082,1739028655674,-500.0,0.00010408,2]
[352288084,1739028655685,-1901.34,0.00010408,2]
[352288086,1739028655696,-1845.74,0.00010408,2]
[352288088,1739028655706,-500.0,0.00010408,2]
[352288091,1739028655717,-1128.45,0.00010408,2]
[352288093,1739028655728,-500.0,0.00010408,2]
[352288095,1739028655740,-1567.88,0.00010408,2]
[352288097,1739028655751,-2346.46,0.00010408,2]
[352288099,1739028655761,-1580.73,0.00010408,2]
[352288101,1739028655771,-1164.35,0.00010408,2]
[352288103,1739028655782,-1616.05,0.00010408,2]
[352288105,1739028655792,-1244.53,0.00010408,2]
[352288108,1739028655802,-500.0,0.00010408,2]
[352288110,1739028655812,-1909.57,0.00010408,2]
[352288112,1739028655823,-724.54,0.00010408,2]
[352288114,1739028655833,-3113.61,0.00010408,2]
[352288116,1739028655843,-2706.3,0.00010408,2]
[352288118,1739028655853,-632.44,0.00010408,2]
[352288120,1739028655864,-500.0,0.00010408,2]
[352288122,1739028655874,-2819.15,0.00010408,2]
[352288124,1739028655885,-1753.39,0.00010408,2]
[352288127,1739028655895,-500.0,0.00010408,2]
[352288129,1739028655906,-1694.87,0.00010408,2]
[352288131,1739028655917,-5975.4,0.00010408,2]
[352288133,1739028655927,-500.0,0.00010408,2]
[352288135,1739028655938,-1212.9,0.00010408,2]
[352288137,1739028655949,-500.0,0.00010408,2]
[352288181,1739028655960,-914.9,0.00010408,2]
[352288186,1739028656399,-4098.16,0.00010408,2]
[352288188,1739028656410,-500.0,0.00010408,2]
[352288190,1739028656419,-2406.98,0.00010408,2]
[352288192,1739028656429,-2459.54,0.00010408,2]
[352288193,1739028656439,-2553.13,0.00010408,2]
[352288194,1739028656451,-500.0,0.00010408,2]
[352288195,1739028656460,-500.0,0.00010408,2]
[352288196,1739028656469,-500.0,0.00010408,2]
[352288197,1739028656479,-2034.32,0.00010408,2]
[352288198,1739028656488,-1134.99,0.00010408,2]
[352288199,1739028656497,-1466.13,0.00010408,2]
[352288200,1739028656507,-2648.42,0.00010408,2]
[352288201,1739028656516,-500.0,0.00010408,2]
[352288202,1739028656525,-956.17,0.00010408,2]
[352288203,1739028656534,-2268.11,0.00010408,2]
[352288204,1739028656543,-1838.22,0.00010408,2]
[352288206,1739028656553,-500.0,0.00010408,2]
[352288208,1739028656564,-500.0,0.00010408,2]
[352288210,1739028656575,-1728.06,0.00010408,2]
[352288212,1739028656585,-2483.22,0.00010408,2]
[352288214,1739028656594,-828.54,0.00010408,2]
[352288216,1739028656605,-500.0,0.00010408,2]
[352288218,1739028656614,-1069.72,0.00010408,2]
[352288220,1739028656624,-2693.7,0.00010408,2]
[352288222,1739028656633,-500.0,0.00010408,2]
[352288224,1739028656642,-500.0,0.00010408,2]
[352288226,1739028656653,-500.0,0.00010408,2]
[352288228,1739028656662,-500.0,0.00010408,2]
[352288230,1739028656671,-1474.86,0.00010408,2]
[352288232,1739028656680,-500.0,0.00010408,2]
[352288234,1739028656690,-509.39,0.00010408,2]
[352288236,1739028656701,-1041.36,0.00010408,2]
[352288238,1739028656710,-971.21,0.00010408,2]
[352288240,1739028656720,-2117.23,0.00010408,2]
[352288242,1739028656730,-500.0,0.00010408,2]
[352288244,1739028656740,-500.0,0.00010408,2]
[352288246,1739028656750,-500.0,0.00010408,2]
[352288248,1739028656760,-500.0,0.00010408,2]
[352288250,1739028656769,-500.0,0.00010408,2]
[352288252,1739028656778,-500.0,0.00010408,2]
[352288254,1739028656788,-677.08,0.00010408,2]
[352288256,1739028656798,-641.48,0.00010408,2]
[352288259,1739028656808,-2282.73,0.00010408,2]
[352288261,1739028656819,-500.0,0.00010408,2]
[352288263,1739028656829,-1913.7,0.00010408,2]
[352288265,1739028656839,-527.94,0.00010408,2]
[352288267,1739028656848,-1007.06,0.00010408,2]
[352288269,1739028656858,-1449.4,0.00010408,2]
[352288271,1739028656867,-1523.2,0.00010409,2]
[352288273,1739028656877,-357.77800009,0.00010409,2]
[352288275,1739028656887,-711.38,0.00010409,2]
[352288277,1739028656897,-685.67,0.00010409,2]
[352288279,1739028656906,-2565.19,0.00010409,2]
[352288281,1739028656916,-500.0,0.00010409,2]
[352288283,1739028656927,-500.0,0.00010409,2]
[352288285,1739028656937,-691.85,0.00010409,2]
[352288287,1739028656949,-849.79,0.00010409,2]
[352288289,1739028656959,-500.0,0.00010409,2]
[352288291,1739028656968,-500.0,0.00010409,2]
[352288293,1739028656978,-500.0,0.00010409,2]
[352288294,1739028656987,-500.0,0.00010409,2]
[352288296,1739028656997,-500.0,0.00010409,2]
[352288298,1739028657006,-1346.62,0.00010409,2]
[352288300,1739028657015,-500.0,0.00010409,2]
[352288303,1739028657025,-500.0,0.00010409,2]
[352288305,1739028657035,-641.27,0.00010409,2]
[352288307,1739028657044,-500.0,0.00010409,2]
[352288309,1739028657054,-503.79,0.00010409,2]
[352288311,1739028657069,-986.82,0.00010409,2]
[352288313,1739028657090,-500.0,0.00010409,2]
[352288314,1739028657100,-1151.05,0.00010409,2]
[352288316,1739028657110,-500.0,0.00010409,2]
[352288318,1739028657120,-500.0,0.00010409,2]
[352288321,1739028657130,-500.0,0.00010409,2]
[352288323,1739028657141,-500.0,0.00010409,2]
[352288325,1739028657151,-500.0,0.00010409,2]
[352288327,1739028657160,-500.0,0.00010409,2]
[352288329,1739028657170,-500.0,0.00010409,2]
[352288330,1739028657180,-629.25,0.00010409,2]
[352288333,1739028657190,-500.0,0.00010409,2]
[352288335,1739028657202,-500.0,0.00010409,2]
[352288337,1739028657213,-1089.46,0.00010409,2]
[352288339,1739028657223,-500.0,0.00010409,2]
[352288341,1739028657232,-744.42,0.00010409,2]
[352288343,1739028657242,-500.0,0.00010409,2]
[352288345,1739028657251,-382.26945635,0.00010409,2]
[352288347,1739028657261,-500.0,0.00010409,2]
[352288349,1739028657270,-1158.94,0.00010409,2]
[352288351,1739028657280,-500.0,0.00010409,2]
[352288353,1739028657290,-500.0,0.00010409,2]
[352288355,1739028657300,-500.0,0.00010409,2]
[352288357,1739028657310,-977.07,0.00010409,2]
[352288359,1739028657320,-885.84,0.00010409,2]
[352288361,1739028657330,-500.0,0.00010409,2]
[352288363,1739028657339,-500.0,0.00010409,2]
[352288365,1739028657349,-575.06,0.00010409,2]
[352288367,1739028657358,-550.7,0.00010409,2]
[352288369,1739028657368,-1066.93,0.00010409,2]
[352288371,1739028657377,-370.74565006,0.00010409,2]
[352288373,1739028657387,-500.0,0.00010409,2]
[352288375,1739028657396,-916.65,0.00010409,2]
[352288377,1739028657406,-500.0,0.00010409,2]
[352288379,1739028657415,-804.1,0.00010409,2]
[352288381,1739028657426,-500.0,0.00010409,2]
[352288383,1739028657435,-500.0,0.00010409,2]
[352288385,1739028657445,-500.0,0.00010409,2]
[352288387,1739028657454,-500.0,0.00010409,2]
[352288389,1739028657464,-500.0,0.00010409,2]
[352288391,1739028657474,-520.63,0.00010409,2]
[352288393,1739028657483,-500.0,0.00010409,2]
[352288395,1739028657493,-500.0,0.00010409,2]
[352288397,1739028657502,-547.63,0.00010409,2]
[352288399,1739028657512,-500.0,0.00010409,2]
[352288401,1739028657521,-1223.68,0.00010409,2]
[352288403,1739028657531,-500.0,0.00010409,2]
[352288405,1739028657540,-500.0,0.00010409,2]
[352288407,1739028657549,-500.0,0.00010409,2]
[352288409,1739028657559,-1043.84,0.00010409,2]
[352288411,1739028657569,-500.0,0.00010409,2]
[352288413,1739028657581,-500.0,0.00010409,2]
[352288415,1739028657591,-500.0,0.00010409,2]
[352288417,1739028657600,-500.0,0.00010409,2]
[352288419,1739028657611,-986.77,0.00010409,2]
[352288421,1739028657620,-500.0,0.00010409,2]
[352288423,1739028657630,-500.0,0.00010409,2]
[352288425,1739028657639,-500.0,0.00010409,2]
[352288427,1739028657648,-934.21,0.00010409,2]
[352288429,1739028657659,-500.0,0.00010409,2]
[352288431,1739028657670,-1252.76,0.00010409,2]
[352288434,1739028657679,-603.48938919,0.00010409,2]
[352288435,1739028657688,-500.0,0.00010409,2]
[352288438,1739028657699,-851.2,0.00010409,2]
[352288440,1739028657708,-983.8,0.00010409,2]
[352288442,1739028657718,-633.99,0.00010409,2]
[352288444,1739028657727,-500.0,0.00010409,2]
[352288446,1739028657736,-500.0,0.00010409,2]
[352288448,1739028657746,-913.56,0.00010409,2]
[352288450,1739028657755,-500.0,0.00010409,2]
[352288452,1739028657765,-500.0,0.00010409,2]
[352288454,1739028657774,-1088.42,0.00010409,2]
[352288456,1739028657783,-947.86,0.00010409,2]
[352288458,1739028657792,-1091.33,0.00010409,2]
[352288460,1739028657801,-441.97625777,0.00010409,2]
[352288462,1739028657811,-500.0,0.00010409,2]
[352288464,1739028657820,-1317.62,0.00010409,2]
[352288466,1739028657830,-500.0,0.00010409,2]
[352288468,1739028657839,-787.07,0.00010409,2]
[352288470,1739028657848,-500.0,0.00010409,2]
[352288472,1739028657859,-593.57,0.00010409,2]
[352288474,1739028657868,-500.0,0.00010409,2]
[352288476,1739028657877,-508.17,0.00010409,2]
[352288478,1739028657887,-992.85,0.00010409,2]
[352288480,1739028657897,-2552.46,0.00010409,2]
[352288482,1739028657906,-780.62,0.00010409,2]
[352288484,1739028657915,-548.15,0.00010409,2]
[352288486,1739028657926,-1122.93,0.00010409,2]
[352288488,1739028657936,-1101.79,0.00010409,2]
[352288490,1739028657946,-902.22,0.00010409,2]
[352288492,1739028657955,-657.05,0.00010409,2]
[352288494,1739028657965,-230.32287198,0.00010409,2]
[352288496,1739028657975,-512.48,0.00010409,2]
[352288498,1739028657985,-500.0,0.00010409,2]
[352288500,1739028657994,-1120.42,0.00010409,2]
[352288502,1739028658004,-6693.6,0.00010409,2]
[352288504,1739028658013,-741.29,0.00010409,2]
[352288506,1739028658023,-1034.11,0.00010409,2]
[352288508,1739028658032,-675.65,0.00010409,2]
[352288510,1739028658041,-500.0,0.00010409,2]
[352288512,1739028658051,-581.86,0.00010409,2]
[352288514,1739028658060,-916.73,0.00010409,2]
[352288516,1739028658069,-731.99,0.00010409,2]
[352288518,1739028658079,-1466.25,0.00010409,2]
[352288520,1739028658088,-500.0,0.00010409,2]
[352288522,1739028658099,-500.0,0.00010409,2]
[352288524,1739028658108,-597.7,0.00010409,2]
[352288526,1739028658118,-160.07040467,0.00010409,2]
[352288528,1739028658127,-500.0,0.00010409,2]
[352288530,1739028658137,-500.0,0.00010409,2]
[352288532,1739028658146,-500.0,0.00010409,2]
[352288534,1739028658156,-1297.02,0.00010409,2]
[352288536,1739028658165,-500.0,0.00010409,2]
[352288538,1739028658174,-1028.96,0.00010409,2]
[352288540,1739028658184,-3310.98,0.00010409,2]
[352288542,1739028658196,-500.0,0.00010409,2]
[352288544,1739028658205,-500.0,0.00010409,2]
[352288546,1739028658215,-500.0,0.00010409,2]
[352288548,1739028658224,-917.91,0.00010409,2]
[352288550,1739028658233,-511.7,0.00010409,2]
[352288552,1739028658242,-500.0,0.00010409,2]
[352288554,1739028658252,-500.0,0.00010409,2]
[352288556,1739028658261,-643.43,0.00010409,2]
[352288558,1739028658271,-500.0,0.00010409,2]
[352288559,1739028658280,-539.85,0.00010409,2]
[352288560,1739028658290,-3319.49,0.00010409,2]
[352288561,1739028658299,-913.19,0.00010409,2]
[352288562,1739028658309,-500.0,0.00010409,2]
[352288563,1739028658319,-1143.68,0.00010409,2]
[352288564,1739028658329,-994.19,0.00010409,2]
[352288565,1739028658338,-954.06,0.00010409,2]
[352288566,1739028658348,-1144.4,0.00010409,2]
[352288567,1739028658357,-500.0,0.00010409,2]
[352288568,1739028658367,-500.0,0.00010409,2]
[352288569,1739028658377,-2477.27,0.00010409,2]
[352288570,1739028658387,-763.69,0.00010409,2]
[352288571,1739028658396,-500.0,0.00010409,2]
[352288572,1739028658406,-806.5,0.00010409,2]
[352288573,1739028658415,-500.0,0.0001041,2]
[352288574,1739028658425,-500.0,0.0001041,2]
[352288575,1739028658434,-500.0,0.0001041,2]
[352288576,1739028658447,-500.0,0.0001041,2]
[352288577,1739028658460,-500.0,0.0001041,2]
[352288578,1739028658473,-500.0,0.0001041,2]
[352288579,1739028658483,-500.0,0.0001041,2]
[352288580,1739028658492,-500.0,0.0001041,2]
[352288582,1739028658501,-500.0,0.0001041,2]
[352288584,1739028658511,-500.0,0.0001041,2]
[352288586,1739028658531,-500.0,0.0001041,2]
[352288587,1739028658540,-500.0,0.0001041,2]